bitfinex-derivatives/quotes_ETHF0:USTF0_20250503
["timestamp","ask_amount","ask_price","bid_price","bid_amount"]
[1746269302763,1.36908756,1825.8,1825.7,1.6206]
[1746269302960,2.52908687,1825.8,1825.5,44.383]
[1746269303164,1.09537,1825.4,1825.3,3.584]
[1746269303368,3.62445687,1825.4,1825.3,3.584]
[1746269303865,3.62445687,1825.4,1825.3,44.384]
[1746269304064,5.26185687,1825.4,1825.3,44.384]
[1746269304968,4.98795931,1825.4,1825.3,44.384]
[1746269305467,5.26185687,1825.4,1825.3,44.384]
[1746269306063,4.98795931,1825.4,1825.3,44.384]
[1746269306265,3.89258931,1825.4,1825.3,47.15713]
[1746269307269,2.20014756,1825.5,1825.3,47.15713]
[1746269307471,2.20014756,1825.5,1825.4,1.6776]
[1746269307972,4.45533687,1825.5,1825.4,1.6776]
[1746269308169,3.08608931,1825.5,1825.4,2.77297]
[1746269308370,0.8309,1825.5,1825.4,2.77297]
[1746269308564,2.98988756,1825.6,1825.4,2.77297]
[1746269308765,2.98988756,1825.6,1825.5,1.6776]
[1746269309373,5.24507687,1825.6,1825.5,1.6776]
[1746269310773,1.09531,1825.5,1825.4,4.30312]
[1746269310974,4.98039931,1825.5,1825.4,4.30312]
[1746269311173,2.72521,1825.5,1825.4,4.30312]
[1746269311474,2.72521,1825.5,1825.4,44.0078]
[1746269311876,2.99910756,1825.5,1825.4,45.10317]
[1746269312072,3.88508931,1825.5,1825.4,41.89537]
[1746269312467,3.88508931,1825.5,1825.4,43.52427]
[1746269312671,4.98039931,1825.5,1825.4,43.52427]
[1746269314384,3.88508931,1825.5,1825.4,43.52427]
[1746269314680,4.15898687,1825.5,1825.4,43.52427]
[1746269314877,4.98039931,1825.5,1825.4,43.52427]
[1746269315076,4.15898687,1825.5,1825.4,43.52427]
[1746269315270,5.25429687,1825.5,1825.4,43.52427]
[1746269317382,3.88508931,1825.5,1825.4,43.52427]
[1746269318188,0.27389756,1825.6,1825.5,1.09531]
[1746269318486,0.27389756,1825.6,1825.5,4.40111]
[1746269319074,3.2078,1825.9,1825.8,1.09513]
[1746269319273,3.2078,1825.9,1825.8,4.67813]
[1746269319684,3.2078,1825.9,1825.8,45.47813]
[1746269319884,3.2078,1825.9,1825.8,46.28683]
[1746269320386,0.27389756,1826.0,1825.9,1.09507]
[1746269320584,2.52908687,1826.0,1825.9,2.79427]
[1746269320784,0.27389756,1826.0,1825.9,2.79427]
[1746269320983,0.27389756,1826.0,1825.9,43.59427]
[1746269321383,0.27389756,1826.0,1825.9,44.42597]
[1746269321584,1.90439756,1826.1,1826.0,1.09501]
[1746269321783,1.90439756,1826.1,1826.0,2.79421]
[1746269321982,4.15958687,1826.1,1826.0,2.79421]
[1746269327786,1.90439756,1826.1,1826.0,2.79421]
[1746269327981,1.08729756,1826.2,1826.1,1.09495]
[1746269328188,0.27389756,1826.2,1826.1,6.38605]
[1746269330283,0.27389756,1826.2,1826.1,7.24225]
[1746269330980,0.27389756,1826.2,1826.1,48.04225]
[1746269331188,3.62397687,1826.2,1826.1,44.382]
[1746269332088,1.36870756,1826.4,1826.2,1.09488]
[1746269332277,2.25518931,1826.2,1826.1,41.89491]
[1746269332482,2.52908687,1826.2,1826.1,45.47691]
[1746269332785,4.16798687,1826.2,1826.1,45.47691]
[1746269333292,1.96749756,1826.3,1826.2,1.09489]
[1746269333588,4.22268687,1826.3,1826.2,2.78819]
[1746269334388,3.94878931,1826.3,1826.2,5.99599]
[1746269334587,1.91279756,1826.4,1826.3,1.09483]
[1746269334890,1.91279756,1826.4,1826.3,2.78813]
[1746269335088,4.16798687,1826.4,1826.3,2.78813]
[1746269336984,3.89408931,1826.4,1826.3,2.78813]
[1746269337185,0.27389756,1826.5,1826.4,1.09477]
[1746269337390,0.27389756,1826.5,1826.4,8.10857]
[1746269337582,1.7438,1826.6,1826.5,1.09471]
[1746269337789,3.99898931,1826.6,1826.5,2.80701]
[1746269339692,4.78808931,1826.6,1826.5,2.80701]
[1746269339889,5.06198687,1826.6,1826.5,2.80701]
[1746269340398,1.7438,1826.6,1826.5,2.80701]
[1746269340700,0.27389756,1826.7,1826.6,1.09465]
[1746269340995,1.97069756,1826.7,1826.6,2.79995]
[1746269341691,5.32047687,1826.7,1826.6,1.09465]
[1746269344195,4.22588687,1826.7,1826.6,1.09465]
[1746269345896,5.32047687,1826.7,1826.6,1.09465]
[1746269346090,4.22588687,1826.7,1826.6,1.09465]
[1746269346594,5.32047687,1826.7,1826.6,1.09465]
[1746269346995,1.36856756,1826.6,1826.5,1.09467]
[1746269347188,2.70939756,1826.6,1826.5,1.09467]
[1746269347384,4.96458687,1826.6,1826.5,1.09467]
[1746269347893,2.73709,1826.3,1825.9,7.3953015]
[1746269348093,5.46298931,1826.0,1825.9,7.2953015]
[1746269348300,6.83189687,1826.0,1825.9,7.2953015]
[1746269348992,3.62409687,1826.0,1825.9,7.2953015]
[1746269350699,3.62409687,1826.0,1825.8,1.09513]
[1746269350899,4.75248931,1825.9,1825.8,1.09513]
[1746269351101,5.02638687,1825.9,1825.8,1.09513]
[1746269351297,1.6243,1825.9,1825.8,1.09513]
[1746269351498,1.07849756,1826.1,1825.9,1.09502]
[1746269351699,4.68408931,1826.1,1826.0,1.09501]
[1746269352197,5.77903931,1826.1,1826.0,1.5921]
[1746269352398,6.05293687,1826.1,1826.0,1.5921]
[1746269352599,6.05293687,1826.1,1825.9,3.585]
[1746269352802,1.6243,1826.0,1825.9,4.68006]
[1746269352988,3.87948931,1826.0,1825.9,3.585]
[1746269353189,4.15338687,1826.0,1825.9,3.585]
[1746269353393,5.24839687,1826.0,1825.9,3.585]
[1746269353801,3.87948931,1826.0,1825.9,4.68007]
[1746269354303,1.6243,1826.0,1825.9,3.585]
[1746269354901,2.71931,1826.0,1825.9,3.585]
[1746269355601,4.97449931,1826.0,1825.9,3.585]
[1746269356000,4.15338687,1826.0,1825.9,3.585]
[1746269356501,3.87948931,1826.0,1825.9,3.585]
[1746269357096,4.97449931,1826.0,1825.9,3.585]
[1746269357296,5.24839687,1826.0,1825.9,3.585]
[1746269358302,4.97449931,1826.0,1825.9,3.585]
[1746269359007,1.07849756,1826.1,1825.9,4.3785]
[1746269359207,4.97668687,1826.1,1825.9,6.0494]
[1746269359698,2.72149756,1826.1,1825.9,6.0494]
[1746269359903,2.25518931,1826.0,1825.9,6.0494]
[1746269360307,2.72149756,1826.1,1825.9,46.8494]
[1746269360505,2.25518931,1826.0,1825.9,46.8494]
[1746269360704,3.89818931,1826.0,1825.9,46.8494]
[1746269360907,1.643,1826.0,1825.9,46.8494]
[1746269361102,1.07849756,1826.1,1825.9,46.8494]
[1746269361405,4.97668687,1826.1,1825.9,46.8494]
[1746269361605,2.25518931,1826.0,1825.9,46.8494]
[1746269361803,3.89818931,1826.0,1825.9,46.8494]
[1746269362105,1.643,1826.0,1825.9,46.8494]
[1746269362407,1.91689756,1826.0,1825.9,46.8494]
[1746269362708,1.643,1826.0,1825.9,46.0559]
[1746269363110,4.31849756,1826.2,1825.9,46.0559]
[1746269363306,2.25518931,1826.1,1826.0,3.2873]
[1746269363501,2.25518931,1826.1,1826.0,1.6455]
[1746269364001,3.35013931,1826.1,1826.0,1.6455]
[1746269364505,1.09493,1826.2,1826.0,5.94828]
[1746269365608,1.09493,1826.2,1826.1,1.09495]
[1746269365810,1.09493,1826.2,1826.0,4.8533]
[1746269366108,0.8735,1826.4,1826.3,1.09483]
[1746269366410,0.8735,1826.4,1826.3,4.68083]
[1746269366605,3.12868931,1826.4,1826.3,4.68083]
[1746269367208,4.22345931,1826.4,1826.3,4.68083]
[1746269368010,4.22345931,1826.4,1826.3,3.586]
[1746269368209,5.91895931,1826.4,1826.3,3.586]
[1746269369107,6.19285687,1826.4,1826.3,3.586]
[1746269370608,6.19285687,1826.4,1826.3,4.68083]
[1746269370809,2.52908687,1826.4,1826.3,4.68083]
[1746269371006,3.62385687,1826.4,1826.3,4.68083]
[1746269371202,5.30195687,1826.4,1826.3,4.68083]
[1746269372106,4.20718687,1826.4,1826.3,4.68083]
[1746269377515,3.93328931,1826.4,1826.3,4.68083]
[1746269379216,4.20718687,1826.4,1826.3,4.68083]
[1746269381619,2.52908687,1826.4,1826.3,4.68083]
[1746269381811,2.52908687,1826.4,1826.3,5.52093]
[1746269384714,1.09495,1826.1,1826.0,9.1912815]
[1746269385020,3.62403687,1826.1,1826.0,7.2953015]
[1746269385420,5.20853687,1826.1,1826.0,7.2953015]
[1746269387720,1.09501,1826.0,1825.9,3.616]
[1746269387911,8.51579687,1826.0,1825.9,3.616]
[1746269392616,6.26060756,1826.0,1825.9,3.616]
[1746269392822,8.51579687,1826.0,1825.9,3.616]
[1746269393625,5.30799687,1826.0,1825.9,3.616]
[1746269393823,8.51579687,1826.0,1825.9,3.616]
[1746269395124,8.52159167,1826.0,1825.9,3.616]
[1746269397625,9.38169167,1826.0,1825.9,3.616]
[1746269403234,6.17389167,1826.0,1825.9,3.616]
[1746269403429,9.38169167,1826.0,1825.9,3.616]
[1746269406437,8.52159167,1826.0,1825.9,5.3418]
[1746269407226,8.52159167,1826.0,1825.9,3.616]
[1746269411843,8.52159167,1826.0,1825.9,5.3655]
[1746269413043,8.52159167,1826.0,1825.9,6.1783]
[1746269413247,6.83769167,1826.0,1825.9,6.1783]
[1746269415948,6.83769167,1826.0,1825.9,7.0119]
[1746269416446,6.83769167,1826.0,1825.9,7.72998336]
[1746269418248,6.83769167,1826.0,1825.9,6.91718336]
[1746269418449,9.25629167,1826.0,1825.9,6.08358336]
[1746269419149,9.25629167,1826.0,1825.9,4.33408336]
[1746269428659,6.04849167,1826.0,1825.9,4.33408336]
[1746269428853,8.98239411,1826.0,1825.9,4.33408336]
[1746269429156,9.25629167,1826.0,1825.9,4.33408336]
[1746269430962,9.25629167,1826.0,1825.9,6.02878336]
[1746269431161,9.25629167,1826.0,1825.9,6.83738336]
[1746269434662,9.25629167,1826.0,1825.9,3.22138336]
[1746269434863,9.25629167,1826.0,1825.9,2.41278336]
[1746269435057,9.25629167,1826.0,1825.9,0.71808336]
[1746269437765,8.98239411,1826.0,1825.9,0.71808336]
[1746269438159,9.25629167,1826.0,1825.9,0.71808336]
[1746269440465,9.25629167,1826.0,1825.9,2.39128336]
[1746269447059,9.25629167,1826.0,1825.9,0.71808336]
[1746269447264,1.09513,1825.8,1825.7,7.2953015]
[1746269447572,3.35031931,1825.8,1825.7,7.2953015]
[1746269448067,4.16811931,1825.8,1825.7,7.2953015]
[1746269449374,4.44201687,1825.8,1825.7,7.2953015]
[1746269449760,0.27389756,1825.9,1825.7,7.2953015]
[1746269449965,0.27389756,1825.9,1825.8,1.92503]
[1746269450165,3.2135948,1826.0,1825.9,1.09507]
[1746269450471,5.49408443,1826.0,1825.9,7.85687]
[1746269450669,5.49408443,1826.0,1825.9,20.48161614]
[1746269450871,5.49408443,1826.0,1825.9,60.8467415]
[1746269451672,5.49408443,1826.0,1825.9,61.2777704]
[1746269451876,5.49408443,1826.0,1825.9,61.27703674]
[1746269452070,5.49408443,1826.0,1825.9,60.84600784]
[1746269452675,1.6602477,1826.1,1826.0,1.09501]
[1746269452872,1.6602477,1826.1,1826.0,3.42114784]
[1746269453073,1.6602477,1826.1,1826.0,8.42114784]
[1746269453677,3.48169756,1826.4,1826.3,1.09483]
[1746269453871,4.57646756,1826.4,1826.3,5.36424562]
[1746269454067,3.48169756,1826.4,1826.3,5.36424562]
[1746269454576,3.48169756,1826.4,1826.3,6.95964562]
[1746269455380,0.27389756,1826.4,1826.3,6.95911592]
[1746269456876,3.62385687,1826.4,1826.3,4.26888592]
[1746269457069,6.95795687,1826.4,1826.3,4.26888592]
[1746269458274,6.95795687,1826.4,1826.3,0.71588592]
[1746269458472,11.95795687,1826.4,1826.3,0.71588592]
[1746269458879,1.09483,1826.3,1826.2,3.553]
[1746269459071,5.32001687,1826.3,1826.2,4.2685081]
[1746269459266,5.32001687,1826.3,1826.2,4.96902809]
[1746269460680,1.96999756,1826.3,1826.2,6.06391809]
[1746269460875,4.22518687,1826.3,1826.2,8.51341809]
[1746269461179,0.27389756,1826.3,1826.2,8.51341809]
[1746269461475,0.27389756,1826.5,1826.4,1.09477]
[1746269461675,6.17652756,1826.7,1826.6,1.09465]
[1746269461880,3.62373687,1826.6,1826.5,6.8171]
[1746269462077,5.22393687,1826.6,1826.5,8.62699819]
[1746269462276,2.96874756,1826.6,1826.5,8.62699819]
[1746269462476,2.96874756,1826.6,1826.5,6.55550488]
[1746269462677,5.22393687,1826.6,1826.5,4.96820488]
[1746269463175,5.22393687,1826.6,1826.5,4.25301669]
[1746269463377,5.22393687,1826.6,1826.5,4.96799836]
[1746269463566,5.22393687,1826.6,1826.5,4.25301669]
[1746269463769,5.22393687,1826.6,1826.5,4.96800532]
[1746269464379,6.08403687,1826.6,1826.5,4.96800532]
[1746269465378,6.08403687,1826.6,1826.5,4.96782994]
[1746269466974,3.82884756,1826.6,1826.5,6.06253994]
[1746269467175,6.08403687,1826.6,1826.5,1.41482994]
[1746269468683,6.08403687,1826.6,1826.5,0.71480781]
[1746269468984,1.09477,1826.4,1826.3,3.552]
[1746269469182,3.34995931,1826.4,1826.3,4.2668318]
[1746269469383,3.62385687,1826.4,1826.3,4.96673307]
[1746269469682,5.31505687,1826.4,1826.3,4.96673307]
[1746269470684,5.31505687,1826.4,1826.3,4.96691971]
[1746269472289,10.31505687,1826.4,1826.3,1.41491971]
[1746269472584,0.27389756,1826.1,1826.0,3.552]
[1746269472784,2.52908687,1826.1,1826.0,3.552]
[1746269473386,4.24958687,1826.1,1826.0,3.552]
[1746269473683,5.34453687,1826.1,1826.0,3.552]
[1746269473987,5.34453687,1826.1,1825.9,40.8]
[1746269473988,1.09501,1826.0,1825.9,40.8]
[1746269474188,5.90849931,1826.0,1825.9,40.8]
[1746269474488,1.09507,1825.9,1825.8,14.06782556]
[1746269474690,3.69107,1825.9,1825.8,14.06782556]
[1746269474888,5.94625931,1825.9,1825.8,54.86782556]
[1746269475190,6.22015687,1825.9,1825.8,51.31582556]
[1746269475689,5.94625931,1825.9,1825.8,52.41095556]
[1746269476491,5.94625931,1825.9,1825.8,51.31582556]
[1746269476684,5.94625931,1825.9,1825.8,52.41095556]
[1746269476884,5.94625931,1825.9,1825.8,44.0078]
[1746269477491,6.22015687,1825.9,1825.8,44.0078]
[1746269479485,3.96496756,1825.9,1825.8,44.0078]
[1746269479688,6.22015687,1825.9,1825.8,44.0078]
[1746269479991,5.94625931,1825.9,1825.8,45.10293]
[1746269480383,6.22015687,1825.9,1825.8,41.89513]
[1746269480690,5.94625931,1825.9,1825.8,41.89513]
[1746269481490,6.22015687,1825.9,1825.8,42.4781]
[1746269481790,6.22015687,1825.9,1825.8,43.57323]
[1746269482384,6.22015687,1825.9,1825.8,44.42673]
[1746269483390,6.22015687,1825.9,1825.8,43.3316]
[1746269484594,6.22015687,1825.9,1825.8,44.42673]
[1746269484985,3.62415687,1825.9,1825.8,44.42673]
[1746269485189,3.62415687,1825.9,1825.8,45.27263]
[1746269485385,1.09506,1826.0,1825.9,1.09507]
[1746269485592,4.57666756,1826.1,1825.9,1.6527]
[1746269485793,3.48169756,1826.1,1826.0,4.64801]
[1746269486292,4.57664756,1826.1,1826.0,4.64801]
[1746269486494,0.27389756,1826.1,1826.0,4.64801]
[1746269487092,0.27389756,1826.1,1826.0,5.35056683]
[1746269487295,1.36884756,1826.1,1826.0,5.35056683]
[1746269488495,0.27389756,1826.1,1826.0,5.35056683]
[1746269488896,5.94527,1826.3,1826.2,1.09489]
[1746269489198,8.20045931,1826.3,1826.2,1.09489]
[1746269489390,6.83175687,1826.3,1826.2,2.39105683]
[1746269489695,6.83175687,1826.3,1826.2,3.48594683]
[1746269490293,6.83175687,1826.3,1826.2,44.28594683]
[1746269490492,6.55785931,1826.3,1826.2,44.28594683]
[1746269490691,3.35005931,1826.3,1826.2,44.28594683]
[1746269490894,3.62395687,1826.3,1826.2,44.28594683]
[1746269492190,3.35005931,1826.3,1826.2,44.28594683]
[1746269493799,2.97490756,1826.4,1826.3,1.09483]
[1746269494096,5.23009687,1826.4,1826.3,3.42658683]
[1746269494286,3.62389687,1826.4,1826.3,3.42658683]
[1746269495403,2.52908687,1826.4,1826.3,3.42658683]
[1746269495595,1.09507,1825.9,1825.7,15.84373834]
[1746269495784,6.55805931,1825.9,1825.7,17.47293834]
[1746269495989,6.55805931,1825.9,1825.7,17.37293834]
[1746269496200,6.83195687,1825.9,1825.7,12.59123834]
[1746269496699,8.55325687,1825.9,1825.7,12.59123834]
[1746269497098,8.55325687,1825.9,1825.7,10.96203834]
[1746269497805,1.09525,1825.6,1825.5,9.54849]
[1746269499302,1.36914756,1825.6,1825.5,5.2454]
[1746269499502,5.31323687,1825.6,1825.5,5.2454]
[1746269499894,5.31323687,1825.6,1825.5,3.552]
[1746269500805,1.36904756,1825.8,1825.6,1.0952]
[1746269501101,3.62427687,1825.7,1825.6,2.5401]
[1746269501300,5.31317687,1825.7,1825.6,2.5401]
[1746269501503,5.03927931,1825.7,1825.6,2.5401]
[1746269504706,2.78409,1825.7,1825.6,2.5401]
[1746269504907,3.94408931,1825.7,1825.6,2.5401]
[1746269505800,2.25518931,1825.7,1825.6,2.5401]
[1746269506001,3.35037931,1825.7,1825.6,4.45135]
[1746269507807,2.25518931,1825.7,1825.6,3.3561]
[1746269509809,3.86838931,1825.7,1825.6,3.3561]
[1746269510211,3.48169756,1826.0,1825.6,11.5639]
[1746269510410,2.52908687,1826.0,1825.7,1.5895]
[1746269510611,2.4448,1825.9,1825.8,3.562]
[1746269510909,2.4448,1825.9,1825.8,44.362]
[1746269511614,2.71869756,1825.9,1825.8,44.362]
[1746269511805,3.50829756,1825.9,1825.8,44.362]
[1746269512210,3.50829756,1825.9,1825.8,3.562]
[1746269514212,5.76348687,1825.9,1825.8,3.562]
[1746269518912,6.85855687,1825.9,1825.8,3.562]
[1746269520716,6.85855687,1825.9,1825.8,4.65713]
[1746269523317,6.85855687,1825.9,1825.8,3.562]
[1746269524511,1.36902756,1825.8,1825.7,40.8]
[1746269524714,1.09519,1825.7,1825.6,3.562]
[1746269524914,1.36908756,1825.7,1825.6,3.562]
[1746269525214,5.29347687,1825.7,1825.6,3.562]
[1746269528218,1.36920756,1825.5,1825.4,14.07782556]
[1746269528416,3.62439687,1825.5,1825.4,14.07782556]
[1746269528717,3.62439687,1825.5,1825.4,6.7698]
[1746269528911,5.26799687,1825.5,1825.4,6.7698]
[1746269530313,5.26799687,1825.5,1825.4,7.48821586]
[1746269530520,5.26799687,1825.5,1825.2,7.30802556]
[1746269530521,1.36932756,1825.3,1825.2,7.30802556]
[1746269530710,6.83231687,1825.3,1825.2,7.30802556]
[1746269531110,8.51291687,1825.3,1825.2,7.30802556]
[1746269532117,1.09555,1825.1,1825.0,3.552]
[1746269532417,3.62463687,1825.1,1825.0,3.552]
[1746269532816,3.35073931,1825.1,1825.0,4.64761]
[1746269533016,3.35073931,1825.1,1825.0,6.25321]
[1746269533218,3.07911756,1825.2,1825.1,1.09555]
[1746269533423,1.7097,1825.2,1825.1,2.70115]
[1746269533714,7.05663756,1825.5,1825.4,1.09537]
[1746269533917,4.30314,1825.5,1825.4,1.09537]
[1746269534127,3.2078,1825.5,1825.4,1.09537]
[1746269534314,3.2078,1825.5,1825.4,3.53527]
[1746269534615,2.4567,1825.7,1825.5,1.09531]
[1746269534815,2.4567,1825.7,1825.6,1.6056]
[1746269535016,5.80707931,1825.7,1825.6,1.6056]
[1746269535215,6.08097687,1825.7,1825.6,1.6056]
[1746269536116,5.80707931,1825.7,1825.6,1.6056]
[1746269536420,9.28877687,1825.7,1825.6,1.6056]
[1746269537118,9.28877687,1825.7,1825.6,2.70085]
[1746269537119,9.01487931,1825.7,1825.6,2.70085]
[1746269538020,3.2078,1825.7,1825.6,6.25385]
[1746269538219,4.30299,1825.7,1825.6,6.25385]
[1746269538417,3.2078,1825.7,1825.6,6.25385]
[1746269539123,4.57686756,1825.8,1825.6,6.25385]
[1746269539413,4.57686756,1825.8,1825.7,1.6324]
[1746269539714,6.83205687,1825.8,1825.7,42.4324]
[1746269540917,6.83205687,1825.8,1825.7,40.8]
[1746269541520,1.09519,1825.7,1825.6,3.553]
[1746269541722,5.89327931,1825.7,1825.6,3.553]
[1746269542119,5.89327931,1825.7,1825.6,44.353]
[1746269542322,6.16717687,1825.7,1825.6,3.553]
[1746269545826,1.09531,1825.5,1825.4,40.8]
[1746269546025,3.35049931,1825.5,1825.4,40.8]
[1746269546223,3.62439687,1825.5,1825.4,40.8]
[1746269546423,5.21099687,1825.5,1825.4,40.8]
[1746269548927,4.93709931,1825.5,1825.4,40.8]
[1746269550024,1.09555,1825.2,1825.1,1.09553]
[1746269550322,3.35066931,1825.3,1825.2,1.09549]
[1746269550526,3.35066931,1825.3,1825.2,43.53739]
[1746269550726,3.62456687,1825.3,1825.2,43.53739]
[1746269551024,3.35066931,1825.3,1825.2,43.53739]
[1746269552326,5.30856687,1825.3,1825.2,42.4419]
[1746269552717,5.30856687,1825.3,1825.2,43.53739]
[1746269553030,5.30856687,1825.3,1825.2,42.4419]
[1746269556834,5.30856687,1825.3,1825.2,43.53739]
[1746269557233,5.30856687,1825.3,1825.2,42.4419]
[1746269558834,5.30856687,1825.3,1825.2,43.53739]
[1746269560136,5.30856687,1825.3,1825.2,42.4419]
[1746269560642,6.17166687,1825.3,1825.2,42.4419]
[1746269561436,6.17166687,1825.3,1825.2,43.53739]
[1746269563234,6.17166687,1825.3,1825.2,42.4419]
[1746269563437,6.17166687,1825.3,1825.2,40.8]
[1746269564237,1.09549,1825.2,1825.1,4.64854]
[1746269564438,4.93217931,1825.2,1825.1,4.64854]
[1746269564637,2.67699,1825.2,1825.1,4.64854]
[1746269564832,2.67699,1825.2,1825.1,45.44854]
[1746269565038,2.95088756,1825.2,1825.1,45.44854]
[1746269565232,2.95088756,1825.2,1825.1,46.0363]
[1746269565834,2.95088756,1825.2,1825.1,47.13185]
[1746269566933,5.20607687,1825.2,1825.1,46.0363]
[1746269567138,5.20607687,1825.2,1825.1,44.353]
[1746269567438,1.09561,1825.0,1824.9,12.92082556]
[1746269567638,1.09561,1825.0,1824.9,16.47282556]
[1746269567639,3.35079931,1825.0,1824.9,16.47282556]
[1746269567936,1.09561,1825.0,1824.9,57.27282556]
[1746269568139,2.69701,1825.0,1824.9,58.36849556]
[1746269568637,2.97090756,1825.0,1824.9,51.31582556]
[1746269568837,9.30709687,1825.0,1824.9,7.30802556]
[1746269569538,1.09573,1824.8,1824.7,51.63941556]
[1746269569735,3.35091931,1824.8,1824.7,51.63941556]
[1746269570538,3.35091931,1824.8,1824.7,52.45811556]
[1746269571346,3.35091931,1824.8,1824.7,51.36232556]
[1746269572634,3.62481687,1824.8,1824.7,51.36232556]
[1746269573437,3.62481687,1824.8,1824.7,49.71472556]
[1746269573740,4.47391687,1824.8,1824.7,49.71472556]
[1746269573940,4.47391687,1824.8,1824.7,7.30802556]
[1746269574335,1.36968756,1824.7,1824.6,3.552]
[1746269574541,1.09591,1824.5,1824.4,10.51582556]
[1746269574743,3.35109931,1824.5,1824.4,10.51582556]
[1746269575036,3.35109931,1824.5,1824.4,7.30802556]
[1746269575037,3.62499687,1824.5,1824.4,7.30802556]
[1746269575442,6.16389687,1824.5,1824.4,7.30802556]
[1746269579148,5.07639931,1824.5,1824.4,7.30802556]
[1746269579437,5.07639931,1824.5,1824.4,9.90442556]
[1746269579835,5.35029687,1824.5,1824.4,9.90442556]
[1746269582840,1.36980756,1824.5,1824.4,9.90442556]
[1746269583539,3.01980756,1824.5,1824.4,9.90442556]
[1746269584845,3.01980756,1824.5,1824.4,2.5964]
[1746269586353,1.36980756,1824.5,1824.4,3.69237]
[1746269587847,1.09591,1824.5,1824.4,3.69237]
[1746269588050,3.2078,1824.6,1824.5,1.09591]
[1746269588051,4.30369,1824.6,1824.5,1.09591]
[1746269588351,6.55887931,1824.6,1824.5,1.09591]
[1746269588551,6.55887931,1824.6,1824.5,2.75911]
[1746269588754,1.36973756,1824.7,1824.6,1.09585]
[1746269589053,1.36973756,1824.7,1824.6,3.60225]
[1746269589551,3.2078,1824.8,1824.7,1.09579]
[1746269589751,3.11555756,1825.0,1824.9,1.09567]
[1746269590050,5.37074687,1825.0,1824.9,1.09567]
[1746269590651,1.09566,1825.0,1824.9,1.09567]
[1746269591048,1.09567,1824.9,1824.8,2.75889]
[1746269591247,3.35083931,1825.0,1824.9,1.09567]
[1746269591650,1.09565,1825.0,1824.9,1.09567]
[1746269592654,1.36954756,1825.0,1824.9,1.09567]
[1746269594162,3.2078,1825.1,1825.0,1.09561]
[1746269594351,0.27389756,1825.3,1825.0,4.64756]
[1746269594655,1.09555,1825.1,1825.0,4.64756]
[1746269595753,1.36944756,1825.1,1825.0,3.552]
[1746269595951,5.26473687,1825.1,1825.0,3.552]
[1746269597149,6.13003687,1825.1,1825.0,3.552]
[1746269597453,1.36950756,1825.0,1824.9,3.552]
[1746269597659,5.26069687,1825.0,1824.9,3.552]
[1746269598753,1.09567,1824.9,1824.8,3.552]
[1746269598953,5.82295931,1824.9,1824.8,3.552]
[1746269599456,0.27389756,1824.8,1824.6,7.30802556]
[1746269599659,5.26087687,1824.7,1824.5,15.16368556]
[1746269599851,3.00568756,1824.7,1824.6,1.09585]
[1746269600557,2.52908687,1824.6,1824.5,15.16369556]
[1746269600757,5.24943687,1824.6,1824.5,15.16369556]
[1746269600956,2.99424756,1824.6,1824.5,15.16369556]
[1746269601859,2.99424756,1824.6,1824.5,14.06782556]
[1746269602761,2.99424756,1824.6,1824.5,15.16373556]
[1746269603254,5.24943687,1824.6,1824.5,11.61173556]
[1746269603559,6.07133687,1824.6,1824.5,3.2078]
[1746269607957,1.09591,1824.5,1824.4,3.552]
[1746269608163,5.34439687,1824.5,1824.4,3.552]
[1746269609360,1.09597,1824.4,1824.3,3.2078]
[1746269609661,5.30255687,1824.4,1824.3,3.2078]
[1746269610957,5.02865931,1824.4,1824.3,4.30383]
[1746269611164,5.02865931,1824.4,1824.3,6.05433]
[1746269612766,1.09595,1824.5,1824.4,1.09597]
[1746269613068,3.35113931,1824.5,1824.4,3.62967]
[1746269613366,3.35113931,1824.5,1824.4,4.46487]
[1746269613661,0.27389756,1824.9,1824.4,6.10875]
[1746269613864,0.27389756,1824.8,1824.7,1.09575]
[1746269614056,0.27389756,1824.7,1824.5,4.64886]
[1746269614262,2.25518931,1824.6,1824.5,6.32406]
[1746269614667,1.36973756,1824.7,1824.6,1.09585]
[1746269615367,2.25518931,1824.7,1824.6,1.09585]
[1746269615563,1.6411,1824.8,1824.7,1.09579]
[1746269615761,3.89628931,1824.8,1824.7,1.09579]
[1746269616269,4.99201931,1824.8,1824.7,1.09579]
[1746269617070,1.36968756,1824.7,1824.6,2.76671]
[1746269617269,3.11748756,1824.7,1824.6,2.76671]
[1746269617465,5.37267687,1824.7,1824.6,2.76671]
[1746269617973,4.27688687,1824.7,1824.6,2.76671]
[1746269618661,4.00298931,1824.7,1824.6,2.76671]
[1746269619265,4.27688687,1824.7,1824.5,7.85667]
[1746269619471,2.25518931,1824.6,1824.5,4.64887]
[1746269619767,5.34273687,1824.6,1824.5,6.39767]
[1746269619969,3.08754756,1824.6,1824.5,6.39767]
[1746269620472,4.24688687,1824.6,1824.4,1.09593]
[1746269620672,5.34279687,1824.5,1824.4,4.64793]
[1746269621072,5.34279687,1824.5,1824.4,3.552]
[1746269622272,6.21669687,1824.5,1824.4,3.552]
[1746269626376,1.09603,1824.3,1824.2,4.64807]
[1746269626577,3.35121931,1824.3,1824.2,3.552]
[1746269626778,3.62511687,1824.3,1824.2,3.552]
[1746269627077,3.62511687,1824.3,1824.2,5.2694]
[1746269628076,3.62511687,1824.3,1824.2,6.36549]
[1746269630081,4.14701931,1824.3,1824.2,6.36549]
[1746269631381,4.42091687,1824.3,1824.2,6.36549]
[1746269632091,4.14701931,1824.3,1824.2,6.36549]
[1746269632290,4.42091687,1824.3,1824.2,6.36549]
[1746269636394,4.14701931,1824.3,1824.2,6.36549]
[1746269636594,4.42091687,1824.3,1824.2,6.36549]
[1746269639096,3.08741756,1824.4,1824.3,1.09603]
[1746269639392,5.34260687,1824.4,1824.3,2.447]
[1746269640301,5.34260687,1824.4,1824.3,3.54303]
[1746269641095,5.34260687,1824.4,1824.3,2.447]
[1746269641302,5.34260687,1824.4,1824.3,1.5984]
[1746269642500,1.09603,1824.3,1824.2,5.50095]
[1746269642699,2.84253,1824.3,1824.2,7.09005]
[1746269643099,3.11642756,1824.3,1824.2,7.09005]
[1746269643300,1.36992756,1824.3,1824.2,7.09005]
[1746269643501,1.36988756,1824.4,1824.3,1.09603]
[1746269643698,2.52908687,1824.4,1824.3,1.89093]